fUST/lending_fUST_20251215
["ID","MTS","AMOUNT","RATE_DAILY","PERIOD"]
[398494891,1765746827109,150.0,7.292e-05,2]
[398494892,1765746827524,150.0,7.955e-05,2]
[398494893,1765746827901,150.0,8.618e-05,2]
[398494894,1765746828475,150.3,9.281e-05,2]
[398494895,1765746828751,187.88,9.944e-05,2]
[398494896,1765746829178,225.45,0.00010607,2]
[398494897,1765746829586,263.03,0.0001127,2]
[398494898,1765746829979,300.6,0.00011933,2]
[398494899,1765746830382,338.18,0.00012596,2]
[398494900,1765746830786,375.75,0.00013259,2]
[398494901,1765746838840,-600.0,0.00014221,2]
[398494902,1765746847365,300.0,0.00013673,2]
[398494903,1765746847446,300.0,0.00014221,2]
[398494904,1765746848278,500.0,0.00013699,2]
[398494905,1765746853140,-1104.44546749,0.00014247,2]
[398494906,1765746868525,-248.246,0.00014247,2]
[398494907,1765746884030,-4358.82243601,0.00014461,2]
[398494908,1765746897801,150.0,8.953e-05,2]
[398494909,1765746898249,150.0,9.767e-05,2]
[398494910,1765746898653,150.0,0.00010581,2]
[398494911,1765746899072,150.0,0.00011395,2]
[398494912,1765746907890,500.0,0.00013699,2]
[398494913,1765746907940,500.0,0.00014247,2]
[398494914,1765746927730,500.0,0.00013699,2]
[398494915,1765746927840,500.0,0.00014247,2]
[398494916,1765746967369,500.0,0.00013699,2]
[398494917,1765746967401,1000.0,0.00014247,2]
[398494918,1765746970722,223.60323898,0.00013973,2]
[398494919,1765747069564,1000.0,0.00013699,2]
[398494923,1765747118482,507.93,0.00013939,2]
[398494925,1765747344874,623.066642,0.00013699,2]
[398494926,1765747383628,413.27996227,0.00013273,2]
[398494927,1765747384943,500.0,0.00013273,2]
[398494929,1765747514520,504.3,0.00014,2]
[398494942,1765747632375,-219.1311742,0.00014483,2]
[398494943,1765747632408,-1200.0,0.00014504,2]
[398494944,1765747632438,-300.0,0.00014505,2]
[398494945,1765747632470,-156.0,0.00014505,2]
[398494946,1765747632502,-300.0,0.00014506,2]
[398494947,1765747632533,-1087.0,0.00014506,2]
[398494948,1765747632565,-300.0,0.00014506,2]
[398494949,1765747632598,-300.0,0.00014506,2]
[398494950,1765747632631,-450.15916011,0.00014507,2]
[398494951,1765747632663,-500.0,0.00014507,2]
[398494952,1765747632954,-500.0,0.00014507,2]
[398494953,1765747632986,-500.0,0.00014507,2]
[398494954,1765747633018,-500.0,0.00014507,2]
[398494955,1765747633052,-500.0,0.00014507,2]
[398494956,1765747633085,-400.00824479,0.00014507,2]
[398494957,1765747633119,-500.0,0.00014507,2]
[398494958,1765747633160,-393.00007268,0.00014507,2]
[398494959,1765747633194,-342.0,0.00014507,2]
[398494960,1765747633228,-500.0,0.00014507,2]
[398494961,1765747633261,-500.0,0.00014507,2]
[398494962,1765747633296,-229.99336506,0.00014507,2]
[398494963,1765747635610,-270.00663494,0.00014507,2]
[398494964,1765747635644,-500.0,0.00014507,2]
[398494965,1765747635677,-500.0,0.00014507,2]
[398494966,1765747635711,-500.0,0.00014507,2]
[398494967,1765747635744,-500.0,0.00014507,2]
[398494968,1765747635777,-497.86419373,0.00014507,2]
[398494969,1765747635810,-628.0,0.00014507,2]
[398494971,1765747635841,-250.0,0.00014508,2]
[398494972,1765747635872,-249.71966764,0.00014508,2]
[398494973,1765747635905,-574.12855637,0.00014508,2]
[398494974,1765747635936,-500.0,0.00014508,2]
[398494975,1765747638310,-500.0,0.00014508,2]
[398494976,1765747638343,-500.0,0.00014508,2]
[398494977,1765747638376,-500.0,0.00014508,2]
[398494978,1765747638409,-500.0,0.00014508,2]
[398494979,1765747638442,-1001.0,0.00014508,2]
[398494980,1765747638475,-500.0,0.00014508,2]
[398494981,1765747638508,-500.0,0.00014508,2]
[398494982,1765747638542,-500.0,0.00014508,2]
[398494983,1765747638577,-498.01,0.00014508,2]
[398494984,1765747638776,-1.99,0.00014508,2]
[398494985,1765747638807,-572.96555134,0.00014508,2]
[398494986,1765747638838,-500.0,0.00014513,2]
[398494987,1765747638871,-232.965,0.00014515,2]
[398494988,1765747638904,-500.0,0.00014516,2]
[398494989,1765747638936,-500.0,0.00014516,2]
[398494990,1765747638968,-500.0,0.00014516,2]
[398494991,1765747639000,-500.0,0.00014516,2]
[398494992,1765747639032,-500.0,0.00014516,2]
[398494993,1765747639065,-500.0,0.00014516,2]
[398494994,1765747639096,-500.0,0.00014516,2]
[398495001,1765747641552,-500.0,0.00014516,2]
[398495002,1765747641585,-500.0,0.00014516,2]
[398495003,1765747641618,-500.0,0.00014516,2]
[398495004,1765747641651,-500.0,0.00014516,2]
[398495005,1765747641685,-500.0,0.00014516,2]
[398495006,1765747641718,-500.0,0.00014516,2]
[398495007,1765747641749,-500.0,0.00014516,2]
[398495008,1765747641779,-500.0,0.00014516,2]
[398495009,1765747641808,-500.0,0.00014516,2]
[398495010,1765747641838,-500.0,0.00014516,2]
[398495011,1765747642259,-500.0,0.00014516,2]
[398495012,1765747642304,-500.0,0.00014516,2]
[398495013,1765747642346,-500.0,0.00014516,2]
[398495014,1765747642388,-500.0,0.00014516,2]
[398495015,1765747642432,-500.0,0.00014516,2]
[398495016,1765747642478,-500.0,0.00014516,2]
[398495017,1765747642518,-500.0,0.00014516,2]
[398495019,1765747647776,-300.0,0.00014655,2]
[398495020,1765747647810,-300.0,0.00014655,2]
[398495021,1765747647844,-300.0,0.00014655,2]
[398495022,1765747647879,-300.0,0.00014655,2]
[398495023,1765747647913,-300.0,0.00014655,2]
[398495024,1765747647947,-300.0,0.00014655,2]
[398495025,1765747647981,-300.0,0.00014655,2]
[398495026,1765747648014,-300.0,0.00014655,2]
[398495027,1765747648050,-300.0,0.00014655,2]
[398495028,1765747648082,-300.0,0.00014655,2]
[398495029,1765747648115,-300.0,0.00014655,2]
[398495030,1765747648149,-300.0,0.00014655,2]
[398495031,1765747648183,-300.0,0.00014655,2]
[398495032,1765747648216,-300.0,0.00014655,2]
[398495033,1765747648250,-300.0,0.00014655,2]
[398495034,1765747663517,-500.0,0.00014789,2]
[398495035,1765747679428,-296.01888289,0.00014795,2]
[398495039,1765747720498,7256.22984999,0.000135,2]
[398495040,1765747720577,500.0,0.00014789,2]
[398495045,1765747771462,500.0,0.00014513,2]
[398495046,1765747771975,500.0,0.00014516,2]
[398495047,1765747772071,500.0,0.00014516,2]
[398495048,1765747772223,500.0,0.00014516,2]
[398495049,1765747772799,243.78015001,0.00014516,2]
[398495050,1765747772826,256.21984999,0.00014516,2]
[398495051,1765747772892,182.47448987,0.00014516,2]
[398495084,1765747832506,-300.0,0.00014846,2]
[398495085,1765747832516,-168.0,0.00014846,2]
[398495087,1765747832527,-300.0,0.00014846,2]
[398495089,1765747832536,-600.0,0.00014847,2]
[398495091,1765747832546,-182.28,0.00014847,2]
[398495093,1765747832555,-182.28,0.00014847,2]
[398495095,1765747832564,-182.28,0.00014847,2]
[398495097,1765747832574,-182.28,0.00014847,2]
[398495099,1765747832583,-182.28,0.00014847,2]
[398495101,1765747832592,-182.28,0.00014847,2]
[398495103,1765747832601,-182.27,0.00014847,2]
[398495105,1765747832610,-290.4050467,0.000149,2]
[398495107,1765747832620,-600.0,0.00014947,2]
[398495109,1765747832630,-288.837711,0.00015068,2]
[398495111,1765747832640,-300.0,0.00015143,2]
[398495113,1765747832649,-300.0,0.00015143,2]
[398495115,1765747832660,-300.0,0.00015143,2]
[398495117,1765747832670,-300.0,0.00015143,2]
[398495119,1765747832680,-300.0,0.00015143,2]
[398495121,1765747832691,-300.0,0.00015143,2]
[398495123,1765747832701,-300.0,0.00015143,2]
[398495125,1765747832710,-300.0,0.00015143,2]
[398495127,1765747832720,-300.0,0.00015143,2]
[398495129,1765747832730,-300.0,0.00015143,2]
[398495131,1765747832741,-300.0,0.00015143,2]
[398495133,1765747832752,-300.0,0.00015143,2]
[398495135,1765747832761,-300.0,0.00015143,2]
[398495137,1765747832771,-300.0,0.00015143,2]
[398495139,1765747832779,-300.0,0.00015143,2]
[398495141,1765747832788,-574.12855637,0.00015311,2]
[398495143,1765747832797,-1001.0,0.00015311,2]
[398495145,1765747832806,-610.8737993,0.00015318,2]
[398495147,1765747832815,-560.40624094,0.00015319,2]
[398495149,1765747832825,-351.32974921,0.00015319,2]
[398495151,1765747832834,-434.21962585,0.00015319,2]
[398495153,1765747832843,-66560.36973625,0.0001532,2]
[398495311,1765747838548,-337.96898744,0.00014944,2]
[398495312,1765747838557,-268.07981452,0.0001532,2]
[398495313,1765747838569,-2694.248208,0.0001532,2]
[398495314,1765747838606,-1920.14731643,0.0001532,2]
[398495315,1765747838618,-1517.68091614,0.0001532,2]
[398495316,1765747838630,-418.70525394,0.0001532,2]
[398495317,1765747838642,-4717.75764161,0.0001532,2]
[398495318,1765747838653,-3632.46893236,0.0001532,2]
[398495319,1765747838686,-356.87099803,0.0001532,2]
[398495320,1765747838697,-927.77413823,0.0001532,2]
[398495321,1765747838708,-955.22253843,0.0001532,2]
[398495322,1765747838719,-1020.48504317,0.0001532,2]
[398495323,1765747838731,-2329.95344942,0.0001532,2]
[398495324,1765747838741,-557.69832396,0.0001532,2]
[398495362,1765747840791,-483.73746577,0.0001532,2]
[398495364,1765747840803,-11638.80022374,0.0001532,2]
[398495365,1765747840814,-349.85753433,0.00015367,2]
[398495368,1765747840824,-3718.7074444,0.00015398,2]
[398495369,1765747840835,-500.0,0.0001543,2]
[398495371,1765747840846,-501.31658997,0.0001543,2]
[398495373,1765747840855,-500.0,0.00015467,2]
[398495375,1765747840866,-150.0,0.00015467,2]
[398495378,1765747840879,-150.0,0.00015467,2]
[398495379,1765747840888,-160.13180362,0.00015467,2]
[398495381,1765747840897,-150.0,0.00015467,2]
[398495384,1765747840907,-150.0,0.00015467,2]
[398495386,1765747840916,-407.98640394,0.00015595,2]
[398495388,1765747840927,-421.76938366,0.00015595,2]
[398495390,1765747840936,-500.0,0.00015604,2]
[398495392,1765747840945,-150.0,0.00015604,2]
[398495394,1765747840955,-153.76914731,0.00015604,2]
[398495396,1765747840964,-150.0,0.00015604,2]
[398495398,1765747840973,-153.0,0.00015616,2]
[398495400,1765747840982,-153.0,0.00015616,2]
[398495402,1765747840991,-153.0,0.00015616,2]
[398495403,1765747841000,-153.0,0.00015616,2]
[398495405,1765747841009,-453.0,0.00015741,2]
[398495407,1765747841018,-298.97403973,0.00015741,2]
[398495409,1765747841026,-150.0,0.00015741,2]
[398495411,1765747841037,-632.0,0.00015746,2]
[398495413,1765747841046,-1360.0,0.00015746,2]
[398495415,1765747841055,-2157.0,0.00015746,2]
[398495417,1765747841064,-415.0,0.00015746,2]
[398495420,1765747841073,-595.37131296,0.00015859,2]
[398495421,1765747841082,-1001.0,0.00015859,2]
[398495423,1765747841092,-150.0,0.00015878,2]
[398495425,1765747841101,-600.0,0.00015878,2]
[398495427,1765747841110,-184.4711,0.0001589,2]
[398495429,1765747841119,-1307.08501634,0.0001589,2]
[398495432,1765747841131,-29068.36065008,0.0001589,2]
[398495436,1765747841160,-1757.62581845,0.0001589,2]
[398495438,1765747841171,-2109.60784002,0.0001589,2]
[398495464,1765747842927,190.75070092,0.00013532,2]
[398495466,1765747843561,-451.24,0.0001589,2]
[398495469,1765747843624,-1147.5,0.0001589,2]
[398495470,1765747843679,-3042.04970034,0.0001589,2]
[398495471,1765747843691,-631.8891262,0.0001589,2]
[398495486,1765747846777,-677.29003737,0.0001589,2]
[398495488,1765747846788,-1676.66982004,0.0001589,2]
[398495490,1765747846800,-21426.65348868,0.0001589,2]
[398495491,1765747846811,-306.72417695,0.0001589,2]
[398495492,1765747891366,2000.0,0.00014516,2]
[398495493,1765747891634,2000.0,0.00014516,2]
[398495494,1765747891934,2000.0,0.00014516,2]
[398495495,1765747892254,2000.0,0.00014516,2]
[398495496,1765747894414,1000.0,0.00014516,2]
[398495497,1765747894670,809.25929908,0.00014516,2]
[398495498,1765747894701,190.74070092,0.00014516,2]
[398495499,1765747894945,1000.0,0.00014516,2]
[398495500,1765747895236,1000.0,0.00014516,2]
[398495501,1765747895539,1000.0,0.00014516,2]
[398495502,1765747896172,1000.0,0.00014516,2]
[398495503,1765747896297,182.942,0.00014516,2]
[398495504,1765747903697,3688.0,0.00014816,2]
[398495505,1765747922946,150.0,0.00010166,2]
[398495506,1765747923370,150.0,0.0001109,2]
[398495507,1765747923800,150.0,0.00012014,2]
[398495508,1765747925358,219.20093976,0.00012693,2]
[398495509,1765747925716,258.65710892,0.00014693,2]
[398495510,1765747956811,1000.0,0.00014515,2]
[398495511,1765747957641,10.4692504,0.00014515,2]
[398495512,1765747957667,989.5307496,0.00014515,2]
[398495513,1765747982830,9010.4792504,0.00014,2]
[398495514,1765747982853,10000.01,0.00014,2]
[398495515,1765747982875,9794.0273736,0.00014,2]
[398495516,1765747987719,150.0,9.716e-05,2]
[398495517,1765748049600,-500.0,0.00014513,2]
[398495518,1765748064835,-500.0,0.00014516,2]
[398495524,1765748139905,178.58757368,0.00014475,2]
[398495547,1765748381489,-1109.86051099,0.00014594,2]
[398495548,1765748381647,-10000.01,0.00014594,2]
[398495549,1765748386204,-1683.31471181,0.00014594,2]
[398495550,1765748392332,-1706.981771,0.00014714,2]
[398495551,1765748405558,171.21292056,0.00014528,2]
[398495605,1765749031748,-272.1200542,0.00014847,2]
[398495606,1765749031759,-489.81609756,0.00014847,2]
[398495607,1765749031768,-209.64377879,0.00014849,2]
[398495608,1765749031778,-66.27734112,0.0001519,2]
[398495609,1765749031790,-255.1802915,0.0001519,2]
[398495610,1765749031800,-870.78417344,0.00015275,2]
[398495611,1765749031810,-466.12813108,0.0001532,2]
[398495612,1765749031820,-150.0,0.00015604,2]
[398495613,1765749031829,-150.0,0.00015604,2]
[398495614,1765749031839,-150.0,0.00015604,2]
[398495615,1765749031849,-1001.0,0.00015615,2]
[398495616,1765749031858,-300.0,0.0001562,2]
[398495618,1765749031867,-1200.0,0.0001562,2]
[398495620,1765749031877,-1200.0,0.00015621,2]
[398495622,1765749031887,-300.0,0.00015621,2]
[398495623,1765749031896,-300.0,0.00015621,2]
[398495624,1765749031905,-300.0,0.00015621,2]
[398495625,1765749031915,-300.0,0.00015624,2]
[398495626,1765749031924,-300.0,0.00015624,2]
[398495627,1765749031933,-300.0,0.00015624,2]
[398495628,1765749031943,-300.0,0.00015624,2]
[398495629,1765749031953,-300.0,0.00015624,2]
[398495630,1765749031965,-300.0,0.00015624,2]
[398495631,1765749031975,-300.0,0.00015624,2]
[398495632,1765749031985,-300.0,0.00015624,2]
[398495633,1765749031994,-300.0,0.00015624,2]
[398495634,1765749032006,-300.0,0.00015624,2]
[398495635,1765749032015,-300.0,0.00015624,2]
[398495636,1765749032024,-300.0,0.00015624,2]
[398495637,1765749032033,-300.0,0.00015624,2]
[398495638,1765749032044,-300.0,0.00015624,2]
[398495639,1765749032053,-300.0,0.00015624,2]
[398495640,1765749032062,-600.0,0.00015624,2]
[398495641,1765749032071,-332.61877577,0.00015645,2]
[398495642,1765749032080,-500.0,0.00015645,2]
[398495643,1765749032090,-500.0,0.00015645,2]
[398495644,1765749032099,-235.60170719,0.00015645,2]
[398495645,1765749032108,-500.0,0.00015645,2]
[398495646,1765749032117,-500.0,0.00015645,2]
[398495647,1765749032126,-500.0,0.00015645,2]
[398495648,1765749032135,-500.0,0.00015645,2]
[398495649,1765749032144,-505.51351684,0.00015645,2]
[398495650,1765749032153,-79.16825309,0.00015645,2]
[398495651,1765749032174,-420.83174691,0.00015645,2]
[398495652,1765749032183,-613.33934053,0.00015645,2]
[398495653,1765749032192,-504.88595733,0.00015645,2]
[398495654,1765749032201,-499.99999999,0.00015645,2]
[398495655,1765749032210,-186.372,0.0001573,2]
[398495656,1765749032219,-2155.0,0.0001573,2]
[398495657,1765749032228,-632.0,0.0001573,2]
[398495658,1765749032237,-1360.0,0.0001573,2]
[398495659,1765749032247,-250.0,0.00015741,2]
[398495660,1765749032257,-20453.0863392,0.00015744,2]
[398495661,1765749032267,-571.48023577,0.00015764,2]
[398495662,1765749032277,-574.12855637,0.00015781,2]
[398495663,1765749032287,-245.93082445,0.00015789,2]
[398495664,1765749032297,-367.84346964,0.00015789,2]
[398495665,1765749032306,-8754.17278687,0.0001579,2]
[398495780,1765749037820,-729.41544042,0.0001579,2]
[398495781,1765749037834,-3097.08650272,0.0001579,2]
[398495782,1765749037880,-16055.95365329,0.0001579,2]
[398495818,1765749039991,-566.6388077,0.0001579,2]
[398495820,1765749040002,-3662.62585884,0.0001579,2]
[398495823,1765749040015,-7969.7332968,0.0001579,2]
[398496043,1765749045845,-3558.92988729,0.00015627,2]
[398496044,1765749045855,-53175.06973492,0.0001579,2]
[398496046,1765749045888,-600.0,0.0001579,2]
[398496048,1765749045899,-4617.21769034,0.0001579,2]
[398496060,1765749202539,-9828.79707944,0.00014787,2]
[398496061,1765749202758,-10000.01,0.00014787,2]
[398496062,1765749202895,-10000.01,0.00014787,2]
[398496063,1765749203040,-10000.01,0.00014787,2]
[398496064,1765749208559,-10000.01,0.00014787,2]
[398496065,1765749208683,-905.53837436,0.00014787,2]
[398496068,1765749833722,-359.62290566,0.00014401,3]
[398496076,1765749880304,-600.0,0.0001478,2]
[398496082,1765749935389,1000.0,0.00019,120]
[398496090,1765749961943,-236.01414585,0.00014425,3]
[398496091,1765749969136,150.0,8.558e-05,2]
[398496092,1765749969536,150.0,8.966e-05,2]
[398496093,1765749969951,150.0,9.374e-05,2]
[398496094,1765749970369,150.0,9.781e-05,2]
[398496095,1765749970774,150.0,0.00010189,2]
[398496096,1765749971168,150.0,0.00010596,2]
[398496105,1765750036152,150.0,9.644e-05,2]
[398496106,1765750036560,150.0,0.00010103,2]
[398496107,1765750036992,150.0,0.00010562,2]
[398496108,1765750037586,150.0,0.00011021,2]
[398496109,1765750037824,150.0,0.0001148,2]
[398496110,1765750038242,150.0,0.0001194,2]
[398496111,1765750038654,150.0,0.00012399,2]
[398496118,1765750103663,150.0,9.645e-05,2]
[398496119,1765750104082,150.0,0.00010104,2]
[398496120,1765750104515,150.0,0.00010563,2]
[398496121,1765750104960,150.0,0.00011023,2]
[398496122,1765750105344,150.0,0.00011482,2]
[398496147,1765750231830,-636.0,0.00015009,2]
[398496149,1765750231840,-149.29022319,0.0001501,2]
[398496152,1765750231852,-59.70068002,0.0001501,2]
[398496154,1765750231861,-300.0,0.00015059,2]
[398496156,1765750231870,-300.0,0.00015059,2]
[398496158,1765750231879,-175.0,0.00015059,2]
[398496159,1765750231889,-1120.0,0.00015059,2]
[398496162,1765750231899,-500.0,0.0001506,2]
[398496164,1765750231909,-500.0,0.0001506,2]
[398496166,1765750231919,-500.0,0.0001506,2]
[398496168,1765750231929,-1000.0,0.0001506,2]
[398496170,1765750231939,-1000.0,0.0001506,2]
[398496171,1765750231948,-549.9680481,0.0001506,2]
[398496174,1765750231959,-303.0319519,0.0001506,2]
[398496176,1765750231968,-500.0,0.00015068,2]
[398496178,1765750231976,-620.61982914,0.00015068,2]
[398496180,1765750231987,-379.38017086,0.00015068,2]
[398496182,1765750231996,-231.070168,0.00015068,2]
[398496184,1765750232006,-1001.0,0.00015072,2]
[398496186,1765750232015,-298.0,0.00015072,2]
[398496188,1765750232024,-300.0,0.00015081,2]
[398496190,1765750232033,-300.0,0.00015081,2]
[398496192,1765750232042,-300.0,0.00015081,2]
[398496194,1765750232051,-300.0,0.00015081,2]
[398496196,1765750232060,-300.0,0.00015081,2]
[398496198,1765750232069,-300.0,0.00015081,2]
[398496199,1765750232078,-300.0,0.00015081,2]
[398496201,1765750232087,-300.0,0.00015081,2]
[398496204,1765750232096,-300.0,0.00015081,2]
[398496206,1765750232105,-300.0,0.00015081,2]
[398496207,1765750232114,-300.0,0.00015081,2]
[398496209,1765750232123,-300.0,0.00015081,2]
[398496211,1765750232132,-300.0,0.00015081,2]
[398496213,1765750232141,-300.0,0.00015081,2]
[398496215,1765750232150,-300.0,0.00015081,2]
[398496218,1765750232160,-600.0,0.00015382,2]
[398496219,1765750232169,-1000.0,0.00015495,5]
[398496221,1765750232178,-542.14759512,0.00015499,2]
[398496224,1765750232187,-500.0,0.00015499,2]
[398496225,1765750232196,-420.07453413,0.00015499,2]
[398496227,1765750232205,-2500.0,0.000155,2]
[398496229,1765750232213,-4385.202363,0.00015505,2]
[398496231,1765750232222,-415.0,0.00015609,2]
[398496233,1765750232231,-1001.0,0.0001562,2]
[398496235,1765750232241,-250.0,0.00015681,2]
[398496237,1765750232250,-250.0,0.00015681,2]
[398496239,1765750232259,-250.0,0.00015681,2]
[398496241,1765750232268,-250.0,0.00015681,2]
[398496243,1765750232276,-250.0,0.00015681,2]
[398496244,1765750232285,-250.0,0.00015681,2]
[398496245,1765750232294,-250.0,0.00015681,2]
[398496247,1765750232303,-250.0,0.00015681,2]
[398496249,1765750232311,-252.82840663,0.00015681,2]
[398496251,1765750232320,-971.42888711,0.00015681,2]
[398496253,1765750232329,-160.0,0.00015681,2]
[398496254,1765750232339,-160.0,0.00015681,2]
[398496255,1765750232348,-160.0,0.00015681,2]
[398496257,1765750232357,-160.0,0.00015681,2]
[398496259,1765750232366,-160.0,0.00015681,2]
[398496261,1765750232375,-160.0,0.00015681,2]
[398496263,1765750232384,-250.0,0.00015681,2]
[398496265,1765750232394,-183.84137715,0.00015681,2]
[398496267,1765750232403,-250.0,0.00015681,2]
[398496269,1765750232412,-250.0,0.00015681,2]
[398496271,1765750232421,-250.0,0.00015681,2]
[398496273,1765750232429,-250.0,0.00015681,2]
[398496275,1765750232438,-250.0,0.00015681,2]
[398496277,1765750232447,-250.0,0.00015681,2]
[398496279,1765750232461,-250.0,0.00015681,2]
[398496281,1765750232470,-250.0,0.00015681,2]
[398496283,1765750232480,-250.0,0.00015681,2]
[398496285,1765750232490,-250.0,0.00015681,2]
[398496287,1765750232499,-250.0,0.00015681,2]
[398496289,1765750232508,-250.0,0.00015681,2]
[398496291,1765750232517,-250.0,0.00015681,2]
[398496293,1765750232526,-250.0,0.00015681,2]
[398496295,1765750232535,-250.0,0.00015681,2]
[398496297,1765750232544,-250.0,0.00015681,2]
[398496299,1765750232553,-250.0,0.00015681,2]
[398496301,1765750232565,-250.0,0.00015681,2]
[398496303,1765750232573,-250.0,0.00015681,2]
[398496305,1765750232583,-250.0,0.00015681,2]
[398496307,1765750232594,-574.12855637,0.00015681,2]
[398496309,1765750232604,-250.0,0.00015681,2]
[398496311,1765750232613,-250.0,0.00015681,2]
[398496313,1765750232624,-250.0,0.00015681,2]
[398496314,1765750232634,-250.0,0.00015681,2]
[398496315,1765750232645,-250.0,0.00015681,2]
[398496316,1765750232655,-500.0,0.00015681,2]
[398496317,1765750232894,-500.0,0.00015681,2]
[398496318,1765750232909,-500.0,0.00015681,2]
[398496319,1765750232919,-500.0,0.00015681,2]
[398496320,1765750232928,-500.0,0.00015681,2]
[398496321,1765750232937,-500.0,0.00015681,2]
[398496322,1765750232946,-186.372,0.00015689,2]
[398496323,1765750232956,-172.15157712,0.00015689,2]
[398496324,1765750232965,-335.13032579,0.00015689,2]
[398496325,1765750232974,-115253.62191266,0.0001569,2]
[398496326,1765750233909,150.0,9.641e-05,2]
[398496327,1765750234117,150.0,0.000101,2]
[398496329,1765750237873,-500.0,0.00015681,2]
[398496330,1765750237882,-390.15205145,0.00015681,2]
[398496331,1765750237893,-109.84794855,0.00015681,2]
[398496332,1765750237902,-171.15683186,0.00015681,2]
[398496333,1765750237913,-328.84316814,0.00015681,2]
[398496334,1765750237922,-500.0,0.00015681,2]
[398496335,1765750237931,-500.0,0.00015681,2]
[398496336,1765750237941,-28414.91532829,0.0001569,2]
[398496337,1765750237952,-23520.29374046,0.0001569,2]
[398496338,1765750237964,-4819.5,0.0001569,2]
[398496339,1765750237975,-16844.9999999,0.0001569,2]
[398496340,1765750237995,-557.13363298,0.0001569,2]
[398496341,1765750238006,-333.71912776,0.0001569,2]
[398496342,1765750238017,-338.84055212,0.0001569,2]
[398496399,1765750240379,-1023.59729684,0.0001569,2]
[398496403,1765750240400,-1499.98806,0.0001569,2]
[398496414,1765750240491,-303.59,0.0001569,2]
[398496416,1765750240502,-975.24255605,0.0001569,2]
[398496642,1765750243078,-33401.85134745,0.0001569,2]
[398496643,1765750245933,-35654.80395575,0.0001569,2]
[398496644,1765750245944,-1434.71368843,0.0001569,2]
[398496645,1765750245995,-5000.0,0.0001569,2]
[398496646,1765750246005,-305.00000001,0.0001569,2]
[398496647,1765750246017,-851.78723781,0.0001569,2]
[398496650,1765750345898,202.50286774,0.00012723,2]
[398496651,1765750383469,500.0,0.00013273,2]
[398496652,1765750383594,500.0,0.00013273,2]
[398496653,1765750385911,202.71693202,0.00012658,2]
[398496654,1765750401464,500.0,0.00013273,2]
[398496655,1765750402566,500.0,0.00013699,2]
[398496656,1765750402622,1000.0,0.00014247,2]
[398496657,1765750446634,500.0,0.00013273,2]
[398496658,1765750447605,500.0,0.00013273,2]
[398496659,1765750450166,500.0,0.00013273,2]
[398496660,1765750450213,1000.0,0.00013821,2]
[398496661,1765750450264,1500.0,0.00014368,2]
[398496662,1765750453736,500.0,0.00013699,2]
[398496663,1765750453773,500.0,0.00013273,2]
[398496664,1765750455215,500.0,0.00013273,2]
[398496665,1765750456159,300.0,0.00013673,2]
[398496666,1765750456199,600.0,0.00014221,2]
[398496667,1765750457560,1000.0,0.00014247,2]
[398496668,1765750457716,500.0,0.00013699,2]
[398496669,1765750503168,1000.0,0.000129,2]
[398496670,1765750503727,500.0,0.00013273,2]